fUST/lending_fUST_20251218
["ID","MTS","AMOUNT","RATE_DAILY","PERIOD"]
[399005222,1766064411064,5000.0,0.00018,2]
[399005223,1766064412950,150.0,6.727e-05,2]
[399005224,1766064413835,150.0,7.048e-05,2]
[399005225,1766064414280,150.0,7.368e-05,2]
[399005226,1766064414679,150.0,7.688e-05,2]
[399005227,1766064415208,150.0,8.009e-05,2]
[399005228,1766064415666,150.0,8.329e-05,2]
[399005229,1766064416074,150.0,8.649e-05,2]
[399005230,1766064416513,162.16,8.97e-05,2]
[399005231,1766064416909,182.43,9.29e-05,2]
[399005232,1766064417334,198.09,9.611e-05,2]
[399005233,1766064435119,5000.0,0.00018,2]
[399005235,1766064465712,5000.0,0.00018,2]
[399005236,1766064481811,0.01,6.724e-05,2]
[399005237,1766064481837,149.99,6.724e-05,2]
[399005238,1766064482709,150.0,7.045e-05,2]
[399005239,1766064483176,150.0,7.365e-05,2]
[399005240,1766064483591,150.0,7.685e-05,2]
[399005241,1766064483996,150.0,8.005e-05,2]
[399005242,1766064484403,150.0,8.325e-05,2]
[399005243,1766064484857,150.0,8.646e-05,2]
[399005244,1766064485306,169.23,8.966e-05,2]
[399005245,1766064485715,190.38,9.286e-05,2]
[399005246,1766064486166,211.54,9.606e-05,2]
[399005247,1766064489608,5000.0,0.00018,2]
[399005249,1766064513106,3378.87,0.00018,2]
[399005250,1766064513132,1621.13,0.00018,2]
[399005251,1766064537255,5000.0,0.00018,2]
[399005252,1766064550724,150.0,6.773e-05,2]
[399005253,1766064551175,150.0,7.095e-05,2]
[399005254,1766064551572,150.0,7.418e-05,2]
[399005255,1766064551981,150.0,7.74e-05,2]
[399005256,1766064552462,150.0,8.063e-05,2]
[399005257,1766064552891,168.92,8.386e-05,2]
[399005258,1766064553489,197.07,8.708e-05,2]
[399005259,1766064553956,225.22,9.031e-05,2]
[399005260,1766064554365,253.37,9.353e-05,2]
[399005261,1766064554828,281.53,9.676e-05,2]
[399005262,1766064560785,1502.77,0.00018,2]
[399005263,1766064560807,3497.23,0.00018,2]
[399005264,1766064583841,5000.0,0.00018,2]
[399005266,1766064606790,1502.78,0.00018,2]
[399005267,1766064606815,3497.22,0.00018,2]
[399005268,1766064621337,150.0,6.78e-05,2]
[399005269,1766064621760,150.0,7.103e-05,2]
[399005270,1766064622154,150.0,7.425e-05,2]
[399005271,1766064622607,150.0,7.748e-05,2]
[399005272,1766064623020,150.0,8.071e-05,2]
[399005273,1766064623480,150.0,8.394e-05,2]
[399005274,1766064623899,150.0,8.717e-05,2]
[399005275,1766064630273,5000.0,0.00018,2]
[399005298,1766064632536,-150.0,0.00018249,2]
[399005299,1766064632546,-164.95771699,0.00018268,2]
[399005300,1766064632556,-1004.0,0.00019355,2]
[399005301,1766064632566,-300.0,0.00019355,2]
[399005302,1766064632576,-300.0,0.00019355,2]
[399005303,1766064632585,-1200.0,0.00019355,2]
[399005304,1766064632595,-5917.36094242,0.00019356,2]
[399005305,1766064632605,-300.0,0.00019356,2]
[399005306,1766064632616,-300.0,0.00019356,2]
[399005307,1766064632625,-300.0,0.00019356,2]
[399005308,1766064632637,-300.0,0.00019356,2]
[399005309,1766064632647,-300.0,0.00019356,2]
[399005310,1766064632658,-300.0,0.00019356,2]
[399005311,1766064632669,-300.0,0.00019356,2]
[399005312,1766064632680,-300.0,0.00019356,2]
[399005313,1766064632693,-300.0,0.00019356,2]
[399005314,1766064632703,-300.0,0.00019356,2]
[399005315,1766064632715,-300.0,0.00019356,2]
[399005316,1766064632726,-300.0,0.00019356,2]
[399005317,1766064632736,-300.0,0.00019356,2]
[399005318,1766064632748,-300.0,0.00019356,2]
[399005319,1766064632759,-300.0,0.00019356,2]
[399005320,1766064632770,-600.0,0.00019742,2]
[399005321,1766064632781,-450.04631091,0.0002,2]
[399005322,1766064632792,-177.0,0.00020249,2]
[399005323,1766064632804,-189.30929993,0.00020576,2]
[399005324,1766064632815,-297.2090077,0.00021,5]
[399005325,1766064632826,-420.0,0.00021089,2]
[399005326,1766064632837,-256.0,0.00021191,2]
[399005327,1766064632849,-720.0,0.00021716,10]
[399005328,1766064632860,-204.0,0.00022249,2]
[399005329,1766064632871,-203.8440648,0.00022252,2]
[399005330,1766064632882,-813.95368344,0.00022368,2]
[399005331,1766064632892,-407.68670985,0.00022368,2]
[399005332,1766064632904,-235.0,0.00022979,2]
[399005333,1766064632914,-864.0,0.00023888,10]
[399005334,1766064632925,-250.0,0.00024088,2]
[399005335,1766064632935,-231.0,0.00024249,2]
[399005336,1766064632953,-999.0,0.00024512,2]
[399005337,1766064632963,-258.0,0.00026249,2]
[399005338,1766064632972,-1000.0,0.00026277,30]
[399005339,1766064632982,-203.8440648,0.00026294,2]
[399005340,1766064632993,-1555.3883,0.00026294,2]
[399005341,1766064633008,-813.95368344,0.00027888,2]
[399005342,1766064633018,-407.68670985,0.00027888,2]
[399005343,1766064633029,-252.82420917,0.00027919,2]
[399005344,1766064633040,-285.0,0.00028249,2]
[399005345,1766064633050,-1000.0,0.00028904,30]
[399005346,1766064633060,-244.0,0.00028904,30]
[399005347,1766064633071,-1041.66666667,0.00029351,2]
[399005348,1766064633081,-2650.41562548,0.0003,2]
[399005349,1766064633092,-156.65900331,0.0003017,10]
[399005350,1766064633102,-203.8440648,0.00030336,2]
[399005351,1766064633113,-354.30035473,0.00030878,2]
[399005352,1766064633123,-1000.0,0.00031795,30]
[399005353,1766064633133,-492.0,0.00031795,30]
[399005354,1766064633143,-455.0835765,0.00031833,2]
[399005355,1766064633153,-251.612,0.00032549,32]
[399005356,1766064633163,-500.0,0.00032876,2]
[399005357,1766064633172,-813.95368344,0.00033409,2]
[399005358,1766064633182,-407.68670985,0.00033409,2]
[399005359,1766064633196,-203.8440648,0.00034378,2]
[399005360,1766064633207,-1000.0,0.00034974,30]
[399005361,1766064633217,-791.0,0.00034974,30]
[399005362,1766064633226,-10745.41050356,0.00035,2]
[399005363,1766064633236,-163.0,0.00035,120]
[399005364,1766064633245,-401.11405913,0.00035258,7]
[399005365,1766064633254,-500.0,0.00035258,7]
[399005366,1766064633264,-500.0,0.00035258,7]
[399005367,1766064633273,-500.0,0.00035258,7]
[399005368,1766064633283,-500.0,0.00035258,7]
[399005369,1766064633293,-500.0,0.00035258,7]
[399005370,1766064633303,-500.0,0.00035259,7]
[399005371,1766064633312,-500.0,0.00035259,7]
[399005372,1766064633322,-500.0,0.00035259,7]
[399005373,1766064633331,-500.0,0.00035259,7]
[399005374,1766064633341,-500.0,0.00035259,7]
[399005375,1766064633351,-500.0,0.00035259,7]
[399005376,1766064633361,-500.0,0.00035259,7]
[399005377,1766064633370,-500.0,0.00035259,7]
[399005378,1766064633379,-500.0,0.00035259,7]
[399005379,1766064633388,-500.0,0.00035259,7]
[399005380,1766064633398,-500.0,0.00035259,7]
[399005381,1766064633407,-500.0,0.00035259,7]
[399005382,1766064633416,-500.0,0.00035259,7]
[399005383,1766064633426,-500.0,0.00035259,7]
[399005384,1766064633435,-500.0,0.00035259,7]
[399005385,1766064633452,-600.00000001,0.00035259,7]
[399005386,1766064633461,-500.0,0.00035259,7]
[399005387,1766064633470,-500.0,0.00035259,7]
[399005388,1766064633480,-500.0,0.00035259,7]
[399005389,1766064633489,-500.0,0.00035259,7]
[399005390,1766064633499,-500.0,0.00035259,7]
[399005391,1766064633508,-500.0,0.00035259,7]
[399005392,1766064633518,-500.0,0.00035259,7]
[399005393,1766064633527,-500.0,0.00035259,7]
[399005394,1766064633537,-638.17743868,0.00035259,7]
[399005395,1766064633547,-638.17743868,0.00035259,7]
[399005396,1766064633556,-638.17743868,0.00035259,7]
[399005397,1766064633566,-638.17743868,0.00035259,7]
[399005398,1766064633575,-638.17743868,0.00035259,7]
[399005399,1766064633584,-638.17743868,0.00035259,7]
[399005400,1766064633593,-638.17743868,0.00035259,7]
[399005401,1766064633603,-638.17743868,0.00035259,7]
[399005402,1766064633612,-638.17743868,0.00035259,7]
[399005403,1766064633621,-638.17743868,0.00035259,7]
[399005404,1766064633743,-638.17743868,0.00035259,7]
[399005405,1766064633757,-638.17743868,0.00035259,7]
[399005406,1766064633767,-638.17743868,0.00035259,7]
[399005407,1766064633778,-638.17743868,0.00035259,7]
[399005408,1766064633789,-638.17743868,0.00035259,7]
[399005409,1766064633798,-638.17743868,0.00035259,7]
[399005410,1766064633807,-638.17743868,0.00035259,7]
[399005411,1766064633817,-638.17743868,0.00035259,7]
[399005412,1766064633827,-638.17743868,0.00035259,7]
[399005413,1766064633836,-638.17743868,0.00035259,7]
[399005414,1766064633846,-638.17743868,0.00035259,7]
[399005415,1766064633855,-638.17743868,0.00035259,7]
[399005416,1766064633865,-638.17743868,0.00035259,7]
[399005417,1766064633874,-638.17743868,0.00035259,7]
[399005418,1766064633883,-638.17743868,0.00035259,7]
[399005419,1766064633893,-638.17743868,0.00035259,7]
[399005420,1766064633902,-638.17743868,0.00035259,7]
[399005421,1766064633911,-638.17743868,0.00035259,7]
[399005422,1766064633922,-638.17743868,0.00035259,7]
[399005423,1766064633931,-638.17743868,0.00035259,7]
[399005424,1766064633945,-638.17743868,0.00035259,7]
[399005425,1766064633954,-638.17743868,0.00035259,7]
[399005426,1766064633965,-638.17743868,0.00035259,7]
[399005427,1766064633975,-638.17743868,0.00035259,7]
[399005428,1766064633984,-638.17743868,0.00035259,7]
[399005429,1766064633994,-638.17743868,0.00035259,7]
[399005430,1766064634005,-638.17743868,0.00035259,7]
[399005431,1766064634016,-638.17743868,0.00035259,7]
[399005432,1766064634028,-638.17743868,0.00035259,7]
[399005433,1766064634038,-638.17743868,0.00035259,7]
[399005434,1766064634048,-638.17743868,0.00035259,7]
[399005435,1766064634059,-638.17743868,0.00035259,7]
[399005436,1766064634069,-638.17743868,0.00035259,7]
[399005437,1766064634080,-638.17743868,0.00035259,7]
[399005438,1766064634090,-638.17743868,0.00035259,7]
[399005439,1766064634102,-638.17743868,0.00035259,7]
[399005440,1766064634112,-638.17743868,0.00035259,7]
[399005441,1766064634122,-638.17743868,0.00035259,7]
[399005442,1766064634133,-1041.66666667,0.00035259,7]
[399005443,1766064634144,-639.13710399,0.00035259,7]
[399005444,1766064634154,-639.13710399,0.00035259,7]
[399005445,1766064634167,-561.72396076,0.00035259,7]
[399005446,1766064634187,-77.41314323,0.00035259,7]
[399005447,1766064634205,-639.13710399,0.00035259,7]
[399005448,1766064634216,-639.13710399,0.00035259,7]
[399005449,1766064634225,-55.03773268,0.00035259,7]
[399005450,1766064634239,-584.09937131,0.00035259,7]
[399005451,1766064634249,-257.50402939,0.00035259,7]
[399005452,1766064634262,-381.6330746,0.00035259,7]
[399005453,1766064634272,-218.3669254,0.00035259,7]
[399005500,1766064638683,-500.0,0.00035258,7]
[399005501,1766064638694,-162.78477582,0.00035258,7]
[399005502,1766064638712,-500.0,0.00035258,7]
[399005503,1766064638723,-500.0,0.00035258,7]
[399005504,1766064638734,-500.0,0.00035258,7]
[399005505,1766064638745,-500.0,0.00035258,7]
[399005506,1766064638755,-500.0,0.00035258,7]
[399005507,1766064638766,-500.0,0.00035258,7]
[399005508,1766064638776,-500.0,0.00035258,7]
[399005509,1766064638786,-500.0,0.00035258,7]
[399005510,1766064638796,-500.0,0.00035258,7]
[399005511,1766064638806,-500.0,0.00035258,7]
[399005512,1766064638816,-500.0,0.00035258,7]
[399005513,1766064638826,-500.0,0.00035258,7]
[399005514,1766064638836,-500.0,0.00035258,7]
[399005515,1766064638846,-500.0,0.00035258,7]
[399005516,1766064638857,-500.0,0.00035258,7]
[399005517,1766064638867,-500.0,0.00035258,7]
[399005518,1766064638877,-500.0,0.00035258,7]
[399005519,1766064638887,-500.0,0.00035258,7]
[399005520,1766064638897,-500.0,0.00035258,7]
[399005521,1766064638907,-500.0,0.00035258,7]
[399005522,1766064638917,-500.0,0.00035258,7]
[399005523,1766064638927,-500.0,0.00035258,7]
[399005524,1766064638938,-500.0,0.00035258,7]
[399005525,1766064638958,-500.0,0.00035258,7]
[399005526,1766064638968,-500.0,0.00035258,7]
[399005527,1766064638979,-500.0,0.00035258,7]
[399005528,1766064638989,-500.0,0.00035258,7]
[399005529,1766064638999,-500.0,0.00035258,7]
[399005530,1766064639009,-500.0,0.00035258,7]
[399005531,1766064639019,-500.0,0.00035258,7]
[399005532,1766064639028,-500.0,0.00035258,7]
[399005533,1766064639038,-302.59374669,0.00035258,7]
[399005548,1766064642928,-3e-08,0.00035258,7]
[399005563,1766064643699,-197.40625328,0.00035258,7]
[399005564,1766064643716,-500.0,0.00035258,7]
[399005565,1766064643727,-500.0,0.00035258,7]
[399005566,1766064643736,-321.51336669,0.00035258,7]
[399005567,1766064646662,-178.48663331,0.00035258,7]
[399005568,1766064646672,-229.47871905,0.00035258,7]
[399005569,1766064646691,-270.52128095,0.00035258,7]
[399005570,1766064646705,-416.20203662,0.00035258,7]
[399005571,1766064646718,-83.79796338,0.00035258,7]
[399005572,1766064646729,-287.93600393,0.00035258,7]
[399005573,1766064646741,-212.06399607,0.00035258,7]
[399005574,1766064646751,-500.0,0.00035258,7]
[399005575,1766064646761,-500.0,0.00035258,7]
[399005576,1766064646770,-500.0,0.00035258,7]
[399005577,1766064646779,-500.0,0.00035258,7]
[399005578,1766064646788,-500.0,0.00035258,7]
[399005579,1766064646798,-500.0,0.00035258,7]
[399005580,1766064646807,-500.0,0.00035258,7]
[399005581,1766064646816,-500.0,0.00035258,7]
[399005582,1766064646825,-500.0,0.00035258,7]
[399005583,1766064646835,-500.0,0.00035258,7]
[399005584,1766064646845,-500.0,0.00035258,7]
[399005585,1766064646854,-500.0,0.00035258,7]
[399005586,1766064646864,-500.0,0.00035258,7]
[399005587,1766064646873,-500.0,0.00035258,7]
[399005588,1766064646884,-500.0,0.00035258,7]
[399005589,1766064646894,-500.0,0.00035258,7]
[399005590,1766064646903,-500.0,0.00035258,7]
[399005591,1766064646913,-500.0,0.00035258,7]
[399005592,1766064646923,-500.0,0.00035258,7]
[399005593,1766064646932,-500.00821679,0.00035258,7]
[399005594,1766064646942,-500.0,0.00035258,7]
[399005595,1766064646958,-500.0,0.00035258,7]
[399005596,1766064646968,-500.0,0.00035258,7]
[399005597,1766064646978,-500.0,0.00035258,7]
[399005598,1766064646988,-500.0,0.00035258,7]
[399005599,1766064646997,-540.43625658,0.00035258,7]
[399005600,1766064647007,-650.0,0.00035258,7]
[399005601,1766064647016,-500.0,0.00035258,7]
[399005602,1766064647025,-500.0,0.00035258,7]
[399005603,1766064647034,-500.0,0.00035258,7]
[399005604,1766064647043,-500.0,0.00035258,7]
[399005605,1766064647053,-500.0,0.00035258,7]
[399005606,1766064647063,-500.0,0.00035258,7]
[399005607,1766064647073,-500.0,0.00035258,7]
[399005608,1766064647082,-500.0,0.00035258,7]
[399005609,1766064647091,-500.0,0.00035258,7]
[399005610,1766064647101,-500.0,0.00035258,7]
[399005611,1766064647110,-500.0,0.00035258,7]
[399005612,1766064647119,-500.0,0.00035258,7]
[399005613,1766064647128,-500.0,0.00035258,7]
[399005614,1766064647138,-500.0,0.00035258,7]
[399005615,1766064647147,-500.0,0.00035258,7]
[399005616,1766064647157,-500.0,0.00035258,7]
[399005617,1766064647168,-500.0,0.00035258,7]
[399005618,1766064647177,-500.0,0.00035258,7]
[399005620,1766064647186,-1041.66666667,0.000363,7]
[399005621,1766064647195,-2247.35397667,0.00037,120]
[399005622,1766064647212,-1041.66666667,0.000374,7]
[399005623,1766064647221,-204.04790886,0.0003842,2]
[399005624,1766064647231,-1000.0,0.00038472,60]
[399005625,1766064647241,-1000.0,0.00038472,60]
[399005626,1766064647251,-10148.46707508,0.00038551,2]
[399005627,1766064648767,-66484.89951259,0.00038551,2]
[399005628,1766064648777,-560.23965676,0.00038599,10]
[399005629,1766064648786,-500.0,0.00038648,15]
[399005630,1766064648795,-500.0,0.00038648,15]
[399005631,1766064648805,-500.0,0.00038648,15]
[399005632,1766064648814,-543.74456669,0.00038648,15]
[399005633,1766064648824,-344.416113,0.0003865,2]
[399005634,1766064648834,-300.0,0.000387,30]
[399005635,1766064648843,-165.76,0.000387,30]
[399005636,1766064648852,-532.24,0.000387,2]
[399005637,1766064648862,-151.0,0.000387,16]
[399005638,1766064648871,-410.22,0.000388,7]
[399005639,1766064648880,-813.95368344,0.0003893,2]
[399005640,1766064648890,-407.68670985,0.0003893,2]
[399005641,1766064648899,-2480.73050513,0.00039098,2]
[399005642,1766064648912,-500.0,0.00039312,14]
[399005643,1766064648926,-500.0,0.00039312,14]
[399005644,1766064648940,-163.0,0.000397,120]
[399005645,1766064648958,-200.0,0.0004,120]
[399005646,1766064648970,-1000.0,0.00042319,60]
[399005647,1766064648983,-1000.0,0.00042319,60]
[399005648,1766064648997,-579.0,0.00042319,60]
[399005649,1766064649009,-208.17110953,0.00043153,2]
[399005650,1766064649023,-208.17110953,0.00043667,2]
[399005651,1766064649036,-735.5,0.00043947,60]
[399005652,1766064649050,-679.5,0.00043947,60]
[399005653,1766064649063,-200.0,0.00044,120]
[399005654,1766064649078,-208.17110953,0.00044181,2]
[399005655,1766064649090,-163.0,0.000443,120]
[399005656,1766064649103,-814.76763713,0.0004445,2]
[399005657,1766064649115,-408.09439656,0.0004445,2]
[399005658,1766064649134,-208.17110953,0.00044695,2]
[399005659,1766064649148,-208.37928063,0.00045209,2]
[399005660,1766064649159,-593.43,0.00046251,9]
[399005661,1766064649171,-1000.0,0.00046551,120]
[399005662,1766064649181,-1000.0,0.00046551,120]
[399005663,1766064649194,-1000.0,0.00046551,120]
[399005664,1766064649214,-180.692935,0.00046551,120]
[399005665,1766064649227,-180.692935,0.00046551,120]
[399005666,1766064649240,-180.692935,0.00046551,120]
[399005667,1766064649254,-180.692935,0.00046551,120]
[399005668,1766064649273,-170.40775093,0.00046657,7]
[399005669,1766064649287,-1000.0,0.00047,120]
[399005670,1766064649301,-1000.0,0.00047,120]
[399005671,1766064649313,-1000.0,0.00047,120]
[399005672,1766064649324,-1000.0,0.00047,120]
[399005673,1766064649335,-1000.0,0.00047,120]
[399005674,1766064649348,-534.95601773,0.00047,120]
[399005675,1766064649361,-1041.66666667,0.00047,120]
[399005676,1766064649375,-375.46836,0.00048164,30]
[399005677,1766064649387,-375.46836,0.00048164,30]
[399005678,1766064649398,-375.46836,0.00048164,30]
[399005679,1766064649409,-375.46836,0.00048164,30]
[399005680,1766064649422,-374.8617825,0.00048164,30]
[399005681,1766064649433,-3455.99840383,0.0004851,30]
[399005682,1766064649444,-1041.66666667,0.0004851,30]
[399005683,1766064649460,-598.0026436,0.00048712,30]
[399005684,1766064649471,-598.0026436,0.00048712,30]
[399005685,1766064649482,-598.0026436,0.00048712,30]
[399005686,1766064649494,-598.0026436,0.00048904,30]
[399005687,1766064649505,-598.0026436,0.00048904,30]
[399005688,1766064649516,-598.0026436,0.00048904,30]
[399005689,1766064649528,-333.6152662,0.00048904,30]
[399005690,1766064649538,-605.8902916,0.00048904,30]
[399005691,1766064649549,-598.0026436,0.00048904,30]
[399005692,1766064649559,-163.0,0.00049,120]
[399005693,1766064649570,-299.71737131,0.00049315,120]
[399005694,1766064649582,-800.0,0.000499,120]
[399005695,1766064649593,-4826.10030133,0.000499,120]
[399005696,1766064688096,153.84,6.955e-05,2]
[399005697,1766064688535,298.95,7.286e-05,2]
[399005698,1766064688562,8.73,7.286e-05,2]
[399005699,1766064689042,461.52,7.617e-05,2]
[399005700,1766064689462,615.36,7.948e-05,2]
[399005701,1766064689860,769.19,8.279e-05,2]
[399005702,1766064690287,923.03,8.611e-05,2]
[399005703,1766064690688,1076.87,8.942e-05,2]
[399005704,1766064691281,1230.71,9.273e-05,2]
[399005705,1766064691715,1384.55,9.604e-05,2]
[399005706,1766064692114,1538.39,9.935e-05,2]
[399005707,1766064742520,458.2552902,0.00018,2]
[399005708,1766064749080,-458.2552902,0.00018849,9]
[399005709,1766064749104,-150.17510743,0.00019698,17]
[399005710,1766064753741,-190.22159135,0.00019698,17]
[399005711,1766064756345,-117.85859142,0.00019698,17]
[399005712,1766064756369,-260.59917783,0.00020547,25]
[399005713,1766064758456,-154.84181069,0.00020547,25]
[399005714,1766064766232,150.0,6.583e-05,2]
[399005715,1766064766662,189.23,6.897e-05,2]
[399005716,1766064767091,283.84,7.21e-05,2]
[399005717,1766064767491,378.45,7.524e-05,2]
[399005718,1766064767907,473.07,7.837e-05,2]
[399005719,1766064768360,567.68,8.151e-05,2]
[399005720,1766064768825,662.29,8.464e-05,2]
[399005721,1766064768915,235.77460328,0.00018,2]
[399005722,1766064768947,204.82449094,0.00018,2]
[399005723,1766064768975,267.50156102,0.00018,2]
[399005724,1766064769002,634.69073685,0.00018,2]
[399005725,1766064769313,756.91,8.778e-05,2]
[399005726,1766064769658,851.52,9.091e-05,2]
[399005727,1766064770239,946.13,9.405e-05,2]
[399005728,1766064770884,-223.75617013,0.0001841,5]
[399005729,1766064773353,-410.93456672,0.0001841,5]
[399005730,1766064773391,-347.48922955,0.00018819,9]
[399005731,1766064775368,-287.2015073,0.00018819,9]
[399005732,1766064775389,-230.78617093,0.00018849,9]
[399005733,1766064778652,-4.98843235,0.00018849,9]
[399005734,1766064778680,-238.39955173,0.00019229,13]
[399005735,1766064780054,-303.37356147,0.00019229,13]
[399005736,1766064782534,-92.91762365,0.00019229,13]
[399005737,1766064782563,-68.6646071,0.00019638,16]
[399005738,1766064784547,-300.0,0.00019638,16]
[399005739,1766064786778,-266.02612975,0.00019638,16]
[399005740,1766064786802,-14.05030296,0.00019697,17]
[399005741,1766064790112,-151.97,0.00019697,17]
[399005742,1766064791589,-38.80418798,0.00019697,17]
[399005743,1766064791611,-154.83581202,0.00019697,17]
[399005744,1766064793096,-112.665749,0.00019697,17]
[399005745,1766064793117,-187.334251,0.00019697,17]
[399005746,1766064829364,-48.44035228,0.00019697,17]
[399005747,1766064829388,-150.39964772,0.00020048,20]
[399005748,1766064832912,-300.0,0.00020048,20]
[399005749,1766064841838,150.0,6.583e-05,2]
[399005750,1766064842248,150.0,6.896e-05,2]
[399005751,1766064842708,150.0,7.21e-05,2]
[399005752,1766064843581,173.49,7.523e-05,2]
[399005753,1766064844019,216.87,7.837e-05,2]
[399005754,1766064844444,260.24,8.15e-05,2]
[399005755,1766064844856,303.62,8.464e-05,2]
[399005756,1766064845278,346.99,8.777e-05,2]
[399005757,1766064845713,390.36,9.091e-05,2]
[399005758,1766064846109,433.74,9.404e-05,2]
[399005759,1766064862159,273.19444444,0.00018,2]
[399005760,1766064875559,-209.27,0.00018849,9]
[399005761,1766064878005,-63.92444444,0.00018849,9]
[399005762,1766064878029,-236.07555556,0.00019698,17]
[399005763,1766064914695,150.0,6.616e-05,2]
[399005764,1766064915116,150.0,6.931e-05,2]
[399005765,1766064915690,150.0,7.246e-05,2]
[399005766,1766064915959,99.59416347,7.561e-05,2]
[399005767,1766064915996,50.40583653,7.561e-05,2]
[399005768,1766064916403,150.0,7.876e-05,2]
[399005769,1766064916815,150.0,8.192e-05,2]
[399005770,1766064917235,150.0,8.507e-05,2]
[399005771,1766064917644,150.0,8.822e-05,2]
[399005772,1766064995010,-37.11888888,0.00019698,17]
[399005773,1766064995038,-204.7777371,0.00019779,5]
[399005774,1766065045929,150.0,6.648e-05,2]
[399005775,1766065110379,150.0,6.617e-05,2]
[399005776,1766065110785,150.0,6.932e-05,2]
[399005777,1766065111338,150.0,7.247e-05,2]
[399005778,1766065111749,150.0,7.562e-05,2]
[399005779,1766065112065,150.0,7.878e-05,2]
[399005780,1766065112505,150.0,8.193e-05,2]
[399005781,1766065129091,1177.60156694,0.00015111,2]
[399005782,1766065129910,1177.60156694,0.00015428,4]
[399005783,1766065131008,1177.60156694,0.00015745,6]
[399005784,1766065131789,1177.60156694,0.00016061,8]
[399005785,1766065132572,1177.60156694,0.00016378,10]
[399005786,1766065133389,1177.60156694,0.00016695,13]
[399005787,1766065134059,1177.60156694,0.00017012,15]
[399005788,1766065134858,856.79903142,0.00017329,17]
[399005789,1766065134881,320.80253552,0.00017329,17]
[399005790,1766065135966,1177.60156694,0.00017645,19]
[399005791,1766065136630,1177.60156694,0.00017962,21]
[399005792,1766065139582,-300.0,0.00018279,24]
[399005793,1766065139746,300.0,0.00016874,120]
[399005794,1766065141467,300.0,0.00016874,120]
[399005795,1766065142702,-297.73,0.00018279,24]
[399005796,1766065143202,300.0,0.00016874,120]
[399005797,1766065144933,300.0,0.00016874,120]
[399005798,1766065146661,300.0,0.00016874,120]
[399005799,1766065148388,300.0,0.00016874,120]
[399005800,1766065148756,-152.27,0.00018279,24]
[399005801,1766065150136,300.0,0.00016874,120]
[399005802,1766065151863,300.0,0.00016874,120]
[399005803,1766065153574,300.0,0.00016874,120]
[399005804,1766065155293,300.0,0.00016874,120]
[399005805,1766065157009,300.0,0.00016874,120]
[399005806,1766065158715,300.0,0.00016874,120]
[399005807,1766065159883,-272.97518861,0.00018279,24]
[399005808,1766065160431,300.0,0.00016874,120]
[399005809,1766065162168,300.0,0.00016874,120]
[399005810,1766065163894,300.0,0.00016874,120]
[399005811,1766065165608,300.0,0.00016874,120]
[399005812,1766065166456,-175.0,0.00021177,120]
[399005813,1766065167330,300.0,0.00016874,120]
[399005814,1766065169059,300.0,0.00016874,120]
[399005815,1766065170791,300.0,0.00016874,120]
[399005816,1766065172542,300.0,0.00016874,120]
[399005817,1766065174274,300.0,0.00016874,120]
[399005818,1766065176046,300.0,0.00016874,120]
[399005819,1766065177772,300.0,0.00016874,120]
[399005820,1766065178049,150.0,6.684e-05,2]
[399005821,1766065178507,150.0,7.002e-05,2]